[Event "Late-Titled-Tuesday-Blitz-September-19-2023"]
[Site "Chess.com"]
[Date "2023.09.19"]
[Round "10"]
[White "GoltsevDmitry2000"]
[Black "Botvinnak"]
[Result "1-0"]
[WhiteElo "2622"]
[BlackElo "2331"]
[TimeControl "180+1"]
[EndTime "15:54:00 PDT"]
[Termination "GoltsevDmitry2000 won by resignation"]

1. e4 {[%clk 0:02:59.7]} 1... c5 {[%clk 0:02:54]} 2. Nf3 {[%clk 0:03:00]} 2...
g6 {[%clk 0:02:53.7]} 3. d4 {[%clk 0:03:00.1]} 3... Bg7 {[%clk 0:02:54]} 4. dxc5
{[%clk 0:03:00.2]} 4... Qa5+ {[%clk 0:02:53.8]} 5. c3 {[%clk 0:03:00.7]} 5...
Qxc5 {[%clk 0:02:54.1]} 6. Be3 {[%clk 0:03:01.4]} 6... Qc7 {[%clk 0:02:54.5]} 7.
Nbd2 {[%clk 0:03:01.7]} 7... d6 {[%clk 0:02:55]} 8. h3 {[%clk 0:03:02.2]} 8...
Nf6 {[%clk 0:02:55.5]} 9. Bd3 {[%clk 0:03:02.8]} 9... O-O {[%clk 0:02:56]} 10.
O-O {[%clk 0:03:03]} 10... Nc6 {[%clk 0:02:56.6]} 11. Re1 {[%clk 0:03:03.5]}
11... a6 {[%clk 0:02:57.1]} 12. Rb1 {[%clk 0:03:03.2]} 12... b5 {[%clk
0:02:57.5]} 13. Rc1 {[%clk 0:03:02.1]} 13... Bb7 {[%clk 0:02:56.8]} 14. a3
{[%clk 0:03:02.6]} 14... Rac8 {[%clk 0:02:56.2]} 15. c4 {[%clk 0:03:03.2]} 15...
bxc4 {[%clk 0:02:56.4]} 16. Nxc4 {[%clk 0:03:04.1]} 16... Qb8 {[%clk 0:02:55.7]}
17. Nb6 {[%clk 0:03:03.4]} 17... Rc7 {[%clk 0:02:56.1]} 18. Qa4 {[%clk
0:03:03.5]} 18... Nd8 {[%clk 0:02:39.2]} 19. Rxc7 {[%clk 0:02:59.9]} 19... Qxc7
{[%clk 0:02:39]} 20. Rc1 {[%clk 0:02:59.8]} 20... Qb8 {[%clk 0:02:39.2]} 21.
Bxa6 {[%clk 0:02:53.4]} 21... Bxe4 {[%clk 0:02:37.8]} 22. Nd2 {[%clk 0:02:45.3]}
22... Bb7 {[%clk 0:02:35.2]} 23. Bd3 {[%clk 0:02:41]} 23... Ne6 {[%clk
0:02:33.1]} 24. Qb5 {[%clk 0:02:33.6]} 24... h5 {[%clk 0:02:29.7]} 25. a4 {[%clk
0:02:33.1]} 25... Nc7 {[%clk 0:02:26.2]} 26. Qb3 {[%clk 0:02:23.8]} 26... Ncd5
{[%clk 0:02:25]} 27. Bd4 {[%clk 0:02:18.3]} 27... Nxb6 {[%clk 0:02:24.8]} 28.
Bxb6 {[%clk 0:02:16.7]} 28... Bd5 {[%clk 0:02:24.4]} 29. Qb5 {[%clk 0:02:12.6]}
29... Qa8 {[%clk 0:02:23.4]} 30. f3 {[%clk 0:02:10.6]} 30... Rb8 {[%clk
0:02:23.4]} 31. a5 {[%clk 0:02:11]} 31... Ne8 {[%clk 0:02:17.9]} 32. b4 {[%clk
0:02:03.7]} 32... Bd4+ {[%clk 0:02:09]} 33. Bxd4 {[%clk 0:02:00.1]} 33... Rxb5
{[%clk 0:02:08.5]} 34. Bxb5 {[%clk 0:02:01]} 34... e5 {[%clk 0:01:59]} 35. Bb6
{[%clk 0:01:57.5]} 35... e4 {[%clk 0:01:51.7]} 36. fxe4 {[%clk 0:01:55.7]} 36...
Bxe4 {[%clk 0:01:51.9]} 37. Bd7 {[%clk 0:01:56.4]} 37... Bb7 {[%clk 0:01:49.6]}
38. Ne4 {[%clk 0:01:35.8]} 38... Bxe4 {[%clk 0:01:41.5]} 39. Rc8 {[%clk
0:01:35.4]} 39... Qd5 {[%clk 0:01:42.1]} 40. Rxe8+ {[%clk 0:01:24.7]} 40... Kg7
{[%clk 0:01:41.1]} 41. a6 {[%clk 0:01:02.8]} 41... Qd1+ {[%clk 0:01:40.6]} 42.
Kh2 {[%clk 0:01:00.8]} 42... Qe2 {[%clk 0:01:39.7]} 43. Rxe4 {[%clk 0:01:00.4]}
43... Qxe4 {[%clk 0:01:39.8]} 44. a7 {[%clk 0:00:59.5]} 44... d5 {[%clk
0:01:35]} 45. a8=Q {[%clk 0:00:56.4]} 45... Qe5+ {[%clk 0:01:32.5]} 46. Kh1
{[%clk 0:00:55.6]} 46... Qe1+ {[%clk 0:01:32.3]} 47. Bg1 {[%clk 0:00:55.8]}
47... d4 {[%clk 0:01:32.1]} 48. Qd5 {[%clk 0:00:54]} 1-0

[Event "Late-Titled-Tuesday-Blitz-September-19-2023"]
[Site "Chess.com"]
[Date "2023.09.19"]
[Round "10"]
[White "AlexNovitz"]
[Black "PNEPaul"]
[Result "1-0"]
[WhiteElo "2230"]
[BlackElo "1943"]
[TimeControl "180+1"]
[EndTime "15:54:09 PDT"]
[Termination "AlexNovitz won by resignation"]

1. e4 {[%clk 0:03:00.9]} 1... e5 {[%clk 0:03:00]} 2. Nf3 {[%clk 0:03:00.3]} 2...
Nc6 {[%clk 0:03:00.2]} 3. Bb5 {[%clk 0:03:00.5]} 3... f5 {[%clk 0:02:59.7]} 4.
d3 {[%clk 0:02:57.9]} 4... Nf6 {[%clk 0:02:59.5]} 5. Nc3 {[%clk 0:02:56.6]} 5...
Be7 {[%clk 0:02:59.6]} 6. exf5 {[%clk 0:02:52.6]} 6... O-O {[%clk 0:02:59.2]} 7.
O-O {[%clk 0:02:51]} 7... d6 {[%clk 0:02:59.1]} 8. a4 {[%clk 0:02:49.6]} 8...
Bxf5 {[%clk 0:02:58]} 9. h3 {[%clk 0:02:46.3]} 9... a6 {[%clk 0:02:53.9]} 10.
Bxc6 {[%clk 0:02:46.3]} 10... bxc6 {[%clk 0:02:54]} 11. Re1 {[%clk 0:02:43.3]}
11... Qd7 {[%clk 0:02:50.5]} 12. Kh2 {[%clk 0:02:42.3]} 12... Rae8 {[%clk
0:02:50]} 13. Ne4 {[%clk 0:02:41.2]} 13... Nxe4 {[%clk 0:02:31]} 14. dxe4 {[%clk
0:02:39.6]} 14... Be6 {[%clk 0:02:27.6]} 15. Be3 {[%clk 0:02:36.2]} 15... Bf6
{[%clk 0:02:25.6]} 16. Qd3 {[%clk 0:02:31.8]} 16... Qf7 {[%clk 0:02:23.7]} 17.
Qxa6 {[%clk 0:02:28.4]} 17... Bd7 {[%clk 0:01:52.2]} 18. Qd3 {[%clk 0:02:18.7]}
18... Be7 {[%clk 0:01:42.8]} 19. c4 {[%clk 0:02:15.7]} 19... Be6 {[%clk
0:01:41.4]} 20. b3 {[%clk 0:02:12.7]} 20... Qg6 {[%clk 0:01:39.6]} 21. a5 {[%clk
0:01:56.5]} 21... Qh5 {[%clk 0:01:39.3]} 22. Ng1 {[%clk 0:01:45.8]} 22... Bg5
{[%clk 0:01:28]} 23. Ra2 {[%clk 0:01:40.9]} 23... Bf4+ {[%clk 0:01:27.9]} 24.
Bxf4 {[%clk 0:01:41.1]} 24... exf4 {[%clk 0:01:26.5]} 25. Qf3 {[%clk 0:01:35.9]}
25... Qf7 {[%clk 0:01:12.8]} 26. a6 {[%clk 0:01:32.6]} 26... Ra8 {[%clk
0:01:12.4]} 27. a7 {[%clk 0:01:23.8]} 27... Qe8 {[%clk 0:01:11.9]} 28. Ne2
{[%clk 0:01:11.3]} 28... Qc8 {[%clk 0:01:07.7]} 29. Nd4 {[%clk 0:01:08.5]} 29...
Bd7 {[%clk 0:01:05.8]} 30. e5 {[%clk 0:01:08.3]} 30... dxe5 {[%clk 0:01:03.5]}
31. Rxe5 {[%clk 0:01:09.2]} 31... Qb7 {[%clk 0:00:57.1]} 32. Re7 {[%clk
0:01:02.7]} 32... Rxa7 {[%clk 0:00:46]} 33. Rxa7 {[%clk 0:01:01.2]} 33... Qxa7
{[%clk 0:00:46]} 34. Rxd7 {[%clk 0:01:01.8]} 1-0

[Event "Late-Titled-Tuesday-Blitz-September-19-2023"]
[Site "Chess.com"]
[Date "2023.09.19"]
[Round "10"]
[White "Schwindle"]
[Black "talaicito"]
[Result "1-0"]
[WhiteElo "2418"]
[BlackElo "2188"]
[TimeControl "180+1"]
[EndTime "15:54:11 PDT"]
[Termination "Schwindle won on time"]

1. e4 {[%clk 0:03:00.9]} 1... c5 {[%clk 0:02:55.8]} 2. Nf3 {[%clk 0:03:00.8]}
2... d6 {[%clk 0:02:56]} 3. d4 {[%clk 0:02:59.9]} 3... cxd4 {[%clk 0:02:56.9]}
4. Nxd4 {[%clk 0:03:00.5]} 4... Nf6 {[%clk 0:02:57.6]} 5. Nc3 {[%clk 0:03:00.9]}
5... g6 {[%clk 0:02:58.5]} 6. Be3 {[%clk 0:03:00.8]} 6... Bg7 {[%clk 0:02:58.2]}
7. f3 {[%clk 0:03:01.5]} 7... O-O {[%clk 0:02:58]} 8. Qd2 {[%clk 0:03:02.1]}
8... Nc6 {[%clk 0:02:57.9]} 9. Bc4 {[%clk 0:03:02.4]} 9... Bd7 {[%clk 0:02:57]}
10. O-O-O {[%clk 0:03:02.2]} 10... Rc8 {[%clk 0:02:57.5]} 11. Bb3 {[%clk
0:03:02.6]} 11... Nxd4 {[%clk 0:02:57.6]} 12. Bxd4 {[%clk 0:03:02.9]} 12... b5
{[%clk 0:02:58.5]} 13. h4 {[%clk 0:03:03.1]} 13... a5 {[%clk 0:02:47.6]} 14. h5
{[%clk 0:02:56.4]} 14... a4 {[%clk 0:02:41.5]} 15. Bxf6 {[%clk 0:02:46.2]} 15...
exf6 {[%clk 0:01:59.7]} 16. Bd5 {[%clk 0:02:45]} 16... b4 {[%clk 0:01:51.9]} 17.
Ne2 {[%clk 0:02:42.1]} 17... Qb6 {[%clk 0:01:36]} 18. hxg6 {[%clk 0:02:16.5]}
18... hxg6 {[%clk 0:01:34.3]} 19. Kb1 {[%clk 0:01:55.3]} 19... f5 {[%clk
0:01:16.9]} 20. Nf4 {[%clk 0:01:47.3]} 20... Bc3 {[%clk 0:01:01.3]} 21. Qc1
{[%clk 0:01:41.3]} 21... Kg7 {[%clk 0:00:54.1]} 22. Nh5+ {[%clk 0:01:31.7]}
22... Kg8 {[%clk 0:00:44.7]} 23. Qh6 {[%clk 0:01:16.9]} 23... gxh5 {[%clk
0:00:08]} 24. Rxh5 {[%clk 0:01:11.3]} 1-0

[Event "Late-Titled-Tuesday-Blitz-September-19-2023"]
[Site "Chess.com"]
[Date "2023.09.19"]
[Round "10"]
[White "simplerXiao"]
[Black "temus_galaktionov"]
[Result "0-1"]
[WhiteElo "2598"]
[BlackElo "2853"]
[TimeControl "180+1"]
[EndTime "15:54:14 PDT"]
[Termination "temus_galaktionov won by resignation"]

1. e4 {[%clk 0:02:53.6]} 1... c6 {[%clk 0:03:00.9]} 2. Nf3 {[%clk 0:02:50.4]}
2... g6 {[%clk 0:03:01.8]} 3. d4 {[%clk 0:02:49.8]} 3... Bg7 {[%clk 0:03:02.7]}
4. Nc3 {[%clk 0:02:47]} 4... d6 {[%clk 0:03:02.7]} 5. h3 {[%clk 0:02:47.4]} 5...
Nd7 {[%clk 0:03:01.5]} 6. Be3 {[%clk 0:02:48]} 6... e5 {[%clk 0:03:01.3]} 7. Qd2
{[%clk 0:02:48]} 7... Ngf6 {[%clk 0:03:01.3]} 8. a4 {[%clk 0:02:47.4]} 8... O-O
{[%clk 0:03:00.9]} 9. Bc4 {[%clk 0:02:47.2]} 9... Qe7 {[%clk 0:03:01.1]} 10. O-O
{[%clk 0:02:45.9]} 10... exd4 {[%clk 0:03:01.4]} 11. Nxd4 {[%clk 0:02:43]} 11...
Nxe4 {[%clk 0:03:00.9]} 12. Nxe4 {[%clk 0:02:43.3]} 12... Qxe4 {[%clk
0:03:01.8]} 13. Bd3 {[%clk 0:02:39.9]} 13... Qd5 {[%clk 0:02:56.9]} 14. c4
{[%clk 0:02:38.4]} 14... Qe5 {[%clk 0:02:48.8]} 15. f4 {[%clk 0:02:29.9]} 15...
Qe7 {[%clk 0:02:39.2]} 16. Rae1 {[%clk 0:02:28.8]} 16... Qd8 {[%clk 0:02:38.3]}
17. b4 {[%clk 0:02:27.6]} 17... a5 {[%clk 0:02:38.3]} 18. Nb3 {[%clk 0:02:20.5]}
18... axb4 {[%clk 0:02:36.4]} 19. Qxb4 {[%clk 0:02:18.9]} 19... c5 {[%clk
0:02:35.8]} 20. Qa3 {[%clk 0:02:18.8]} 20... Nb6 {[%clk 0:02:24.1]} 21. a5
{[%clk 0:02:17.2]} 21... Be6 {[%clk 0:02:24.3]} 22. Qc1 {[%clk 0:02:13.3]} 22...
Na4 {[%clk 0:02:20.5]} 23. Be4 {[%clk 0:02:11.7]} 23... Qd7 {[%clk 0:02:14.7]}
24. Rf2 {[%clk 0:01:48.2]} 24... Nc3 {[%clk 0:02:09.5]} 25. Bf3 {[%clk
0:01:47.4]} 25... Bxc4 {[%clk 0:02:09.4]} 26. Nd2 {[%clk 0:01:42]} 26... Be6
{[%clk 0:02:08.6]} 27. Ne4 {[%clk 0:01:30.7]} 27... Nxe4 {[%clk 0:02:08.6]} 28.
Bxe4 {[%clk 0:01:30.8]} 28... Rxa5 {[%clk 0:02:08.6]} 29. f5 {[%clk 0:01:30]}
29... Bxf5 {[%clk 0:02:07.4]} 30. Bxf5 {[%clk 0:01:30.2]} 30... gxf5 {[%clk
0:02:08.3]} 31. Bh6 {[%clk 0:01:30.4]} 31... Ra1 {[%clk 0:01:58.7]} 32. Qxa1
{[%clk 0:01:13.7]} 32... Bxa1 {[%clk 0:01:59.6]} 33. Bxf8 {[%clk 0:01:13.4]}
33... Kxf8 {[%clk 0:01:58.5]} 34. Rxa1 {[%clk 0:01:12.5]} 34... b5 {[%clk
0:01:52.6]} 35. Re2 {[%clk 0:01:08.4]} 35... c4 {[%clk 0:01:51.2]} 36. Ra8+
{[%clk 0:01:07.2]} 36... Kg7 {[%clk 0:01:51.4]} 37. Kf2 {[%clk 0:00:59.1]} 37...
d5 {[%clk 0:01:50.9]} 38. Ree8 {[%clk 0:00:59]} 38... d4 {[%clk 0:01:49.5]} 39.
Rg8+ {[%clk 0:00:59.1]} 39... Kf6 {[%clk 0:01:49.4]} 40. Ra6+ {[%clk 0:00:59.8]}
40... Ke5 {[%clk 0:01:49.6]} 41. Raa8 {[%clk 0:00:55.6]} 41... d3 {[%clk
0:01:41.6]} 42. Rge8+ {[%clk 0:00:53.2]} 42... Kf6 {[%clk 0:01:41.8]} 43. Rad8
{[%clk 0:00:52.7]} 43... Qa7+ {[%clk 0:01:39.6]} 44. Kf3 {[%clk 0:00:52.1]}
44... Qb7+ {[%clk 0:01:38.4]} 45. Kf4 {[%clk 0:00:50.5]} 45... Qc7+ {[%clk
0:01:38.6]} 46. Kf3 {[%clk 0:00:47.2]} 46... b4 {[%clk 0:01:39.2]} 47. Rc8
{[%clk 0:00:44.3]} 47... Qb7+ {[%clk 0:01:32.3]} 48. Ke3 {[%clk 0:00:44.2]}
48... Qxg2 {[%clk 0:01:30.3]} 49. Rc6+ {[%clk 0:00:42.6]} 49... Qxc6 {[%clk
0:01:29.9]} 0-1

[Event "Late-Titled-Tuesday-Blitz-September-19-2023"]
[Site "Chess.com"]
[Date "2023.09.19"]
[Round "10"]
[White "szefru"]
[Black "ATM622"]
[Result "1-0"]
[WhiteElo "2333"]
[BlackElo "2446"]
[TimeControl "180+1"]
[EndTime "15:54:17 PDT"]
[Termination "szefru won by checkmate"]

1. e4 {[%clk 0:03:00.9]} 1... c6 {[%clk 0:02:59.6]} 2. d4 {[%clk 0:03:00.7]}
2... d5 {[%clk 0:03:00.5]} 3. exd5 {[%clk 0:02:59.4]} 3... cxd5 {[%clk
0:03:01.4]} 4. Bd3 {[%clk 0:02:59.6]} 4... Nf6 {[%clk 0:03:02]} 5. c3 {[%clk
0:03:00.4]} 5... Nc6 {[%clk 0:03:02.5]} 6. Bf4 {[%clk 0:03:00.9]} 6... h6 {[%clk
0:03:02.1]} 7. Nf3 {[%clk 0:02:56.8]} 7... g5 {[%clk 0:03:02.7]} 8. Be3 {[%clk
0:02:53.2]} 8... Bg7 {[%clk 0:03:03]} 9. Nbd2 {[%clk 0:02:50.7]} 9... O-O {[%clk
0:03:01.3]} 10. O-O {[%clk 0:02:50]} 10... Bg4 {[%clk 0:03:00]} 11. h3 {[%clk
0:02:49.6]} 11... Bh5 {[%clk 0:03:00.3]} 12. Qc2 {[%clk 0:02:47.9]} 12... g4
{[%clk 0:03:00.2]} 13. hxg4 {[%clk 0:02:46.1]} 13... Nxg4 {[%clk 0:03:00.6]} 14.
Bf4 {[%clk 0:02:37.5]} 14... Rc8 {[%clk 0:02:59.5]} 15. a3 {[%clk 0:02:36.5]}
15... Nxd4 {[%clk 0:02:58.6]} 16. Nxd4 {[%clk 0:02:36.2]} 16... Bxd4 {[%clk
0:02:58.8]} 17. Bf5 {[%clk 0:02:26.5]} 17... e6 {[%clk 0:02:56.3]} 18. Bxg4
{[%clk 0:02:22.1]} 18... Bxg4 {[%clk 0:02:56.1]} 19. Bxh6 {[%clk 0:02:22.2]}
19... Qh4 {[%clk 0:02:53.2]} 20. Bxf8 {[%clk 0:02:02.4]} 20... Be5 {[%clk
0:02:45.8]} 21. g3 {[%clk 0:01:36.1]} 21... Qh3 {[%clk 0:02:41.4]} 22. Rfe1
{[%clk 0:01:22.1]} 22... Bd4 {[%clk 0:02:33.2]} 23. Qd3 {[%clk 0:01:20.5]} 23...
Bb6 {[%clk 0:02:24.4]} 24. Bd6 {[%clk 0:01:00.2]} 24... Kg7 {[%clk 0:01:56.7]}
25. Qf1 {[%clk 0:00:50.4]} 25... Qh5 {[%clk 0:01:53.6]} 26. Qg2 {[%clk
0:00:43.7]} 26... Bh3 {[%clk 0:01:40.3]} 27. Qf3 {[%clk 0:00:42.4]} 27... Bg4
{[%clk 0:01:36.9]} 28. Be5+ {[%clk 0:00:42.3]} 28... Kh7 {[%clk 0:01:25.5]} 29.
Qf6 {[%clk 0:00:39.5]} 29... Rg8 {[%clk 0:01:25.2]} 30. Nf1 {[%clk 0:00:26.5]}
30... Bf3 {[%clk 0:01:22.2]} 31. Nh2 {[%clk 0:00:26.8]} 31... Be4 {[%clk
0:01:16.4]} 32. Rxe4 {[%clk 0:00:25]} 32... dxe4 {[%clk 0:01:15.9]} 33. Re1
{[%clk 0:00:25.7]} 33... Rd8 {[%clk 0:01:08]} 34. Qg7# {[%clk 0:00:23.9]} 1-0

[Event "Late-Titled-Tuesday-Blitz-September-19-2023"]
[Site "Chess.com"]
[Date "2023.09.19"]
[Round "10"]
[White "Arimin1329"]
[Black "Inepton_Fermion"]
[Result "1-0"]
[WhiteElo "2289"]
[BlackElo "2343"]
[TimeControl "180+1"]
[EndTime "15:54:22 PDT"]
[Termination "Arimin1329 won by resignation"]

1. d4 {[%clk 0:02:57.6]} 1... Nf6 {[%clk 0:03:00.2]} 2. b3 {[%clk 0:02:56.4]}
2... e6 {[%clk 0:02:58.5]} 3. Bb2 {[%clk 0:02:57.3]} 3... b6 {[%clk 0:02:59]} 4.
Nf3 {[%clk 0:02:55.9]} 4... Bb7 {[%clk 0:02:59.4]} 5. Nbd2 {[%clk 0:02:56.4]}
5... d5 {[%clk 0:03:00]} 6. e3 {[%clk 0:02:56.7]} 6... Bd6 {[%clk 0:03:00.5]} 7.
Bd3 {[%clk 0:02:57.2]} 7... O-O {[%clk 0:03:01.1]} 8. O-O {[%clk 0:02:57.8]}
8... c5 {[%clk 0:03:01.8]} 9. c4 {[%clk 0:02:56.6]} 9... cxd4 {[%clk 0:02:54.2]}
10. Nxd4 {[%clk 0:02:54.3]} 10... a6 {[%clk 0:02:52.8]} 11. Rc1 {[%clk
0:02:51.7]} 11... Nc6 {[%clk 0:02:40.2]} 12. cxd5 {[%clk 0:02:44.3]} 12... Nxd4
{[%clk 0:02:39.2]} 13. Bxd4 {[%clk 0:02:42.4]} 13... Nxd5 {[%clk 0:02:22.6]} 14.
Qh5 {[%clk 0:02:34.7]} 14... g6 {[%clk 0:02:12]} 15. Qh6 {[%clk 0:02:33.7]}
15... e5 {[%clk 0:02:10]} 16. Ba1 {[%clk 0:02:32.1]} 16... Re8 {[%clk
0:01:49.8]} 17. Rfd1 {[%clk 0:02:30.4]} 17... Bf8 {[%clk 0:01:36.6]} 18. Qh3
{[%clk 0:02:30.2]} 18... Qe7 {[%clk 0:01:35.1]} 19. Be4 {[%clk 0:02:17.4]} 19...
Rad8 {[%clk 0:01:29.8]} 20. Nc4 {[%clk 0:02:15.4]} 20... Bg7 {[%clk 0:01:05.5]}
21. Qf3 {[%clk 0:02:12.4]} 21... Qe6 {[%clk 0:00:48.4]} 22. Nxb6 {[%clk
0:02:03.3]} 22... Qxb6 {[%clk 0:00:49.3]} 23. Bxd5 {[%clk 0:02:03.4]} 23... Bxd5
{[%clk 0:00:38.2]} 24. Rxd5 {[%clk 0:02:02.2]} 24... Rxd5 {[%clk 0:00:20.2]} 25.
Qxd5 {[%clk 0:02:01.5]} 25... Rd8 {[%clk 0:00:20.8]} 26. Qc4 {[%clk 0:01:58.9]}
26... Qd6 {[%clk 0:00:16]} 27. h3 {[%clk 0:01:55.6]} 27... h5 {[%clk 0:00:14.5]}
28. Bb2 {[%clk 0:01:53.1]} 28... Qd2 {[%clk 0:00:14.1]} 29. Qc2 {[%clk
0:01:52.4]} 29... Qd5 {[%clk 0:00:07.2]} 30. Ba3 {[%clk 0:01:47.2]} 30... Kh7
{[%clk 0:00:05]} 31. Bc5 {[%clk 0:01:46.7]} 31... e4 {[%clk 0:00:04.3]} 32. b4
{[%clk 0:01:45.5]} 32... Rc8 {[%clk 0:00:03.2]} 33. Rd1 {[%clk 0:01:43.8]} 33...
Qf5 {[%clk 0:00:02.5]} 34. Qd2 {[%clk 0:01:39]} 34... a5 {[%clk 0:00:02]} 35. a3
{[%clk 0:01:39.2]} 35... axb4 {[%clk 0:00:02]} 36. axb4 {[%clk 0:01:39.5]} 36...
Be5 {[%clk 0:00:02.3]} 37. Qd7 {[%clk 0:01:39.4]} 37... Qxd7 {[%clk 0:00:01.7]}
38. Rxd7 {[%clk 0:01:40.3]} 38... Rb8 {[%clk 0:00:02.4]} 39. Rxf7+ {[%clk
0:01:39.8]} 39... Kg8 {[%clk 0:00:02.5]} 40. Re7 {[%clk 0:01:40.2]} 40... Bc3
{[%clk 0:00:03]} 41. Rxe4 {[%clk 0:01:39.9]} 1-0

[Event "Late-Titled-Tuesday-Blitz-September-19-2023"]
[Site "Chess.com"]
[Date "2023.09.19"]
[Round "10"]
[White "maurovargas01"]
[Black "GMJustin"]
[Result "0-1"]
[WhiteElo "1889"]
[BlackElo "2239"]
[TimeControl "180+1"]
[EndTime "15:54:23 PDT"]
[Termination "GMJustin won on time"]

1. e4 {[%clk 0:02:59.4]} 1... e5 {[%clk 0:02:53.2]} 2. Nf3 {[%clk 0:02:59.1]}
2... Nc6 {[%clk 0:02:53]} 3. d4 {[%clk 0:03:00]} 3... d5 {[%clk 0:02:46.8]} 4.
exd5 {[%clk 0:02:59.6]} 4... Qxd5 {[%clk 0:02:44.4]} 5. Nc3 {[%clk 0:02:59.2]}
5... Bb4 {[%clk 0:02:41.6]} 6. dxe5 {[%clk 0:02:49.2]} 6... Qxd1+ {[%clk
0:02:37.1]} 7. Kxd1 {[%clk 0:02:45.4]} 7... Bg4 {[%clk 0:02:36.4]} 8. Bf4 {[%clk
0:02:40]} 8... O-O-O+ {[%clk 0:02:31.5]} 9. Kc1 {[%clk 0:02:15.1]} 9... Nge7
{[%clk 0:02:26.3]} 10. Ne4 {[%clk 0:01:48.7]} 10... Ng6 {[%clk 0:02:15.8]} 11.
Bg3 {[%clk 0:01:47.1]} 11... Bxf3 {[%clk 0:02:05.5]} 12. gxf3 {[%clk 0:01:45.9]}
12... Ngxe5 {[%clk 0:02:04.8]} 13. Bh3+ {[%clk 0:01:39.1]} 13... Kb8 {[%clk
0:02:04.9]} 14. a3 {[%clk 0:01:27.8]} 14... Be7 {[%clk 0:01:53.9]} 15. Bg2
{[%clk 0:01:21.1]} 15... f5 {[%clk 0:01:50]} 16. Nc3 {[%clk 0:01:17.7]} 16...
Bf6 {[%clk 0:01:47]} 17. Re1 {[%clk 0:01:07.1]} 17... Nc4 {[%clk 0:01:41.7]} 18.
Nb5 {[%clk 0:00:44]} 18... Bxb2+ {[%clk 0:01:32.9]} 19. Kb1 {[%clk 0:00:42.9]}
19... Be5 {[%clk 0:01:15.8]} 20. Ra2 {[%clk 0:00:30.1]} 20... f4 {[%clk
0:01:11.9]} 21. Bh4 {[%clk 0:00:29.3]} 21... Rd5 {[%clk 0:01:11.4]} 22. a4
{[%clk 0:00:20.2]} 22... Nb4 {[%clk 0:01:09.7]} 23. Be7 {[%clk 0:00:09.5]} 23...
Nd2+ {[%clk 0:01:04.9]} 24. Kc1 {[%clk 0:00:01.3]} 24... Nxa2+ {[%clk
0:01:04.8]} 0-1

[Event "Late-Titled-Tuesday-Blitz-September-19-2023"]
[Site "Chess.com"]
[Date "2023.09.19"]
[Round "10"]
[White "Cipy77"]
[Black "IgorBjelobrk"]
[Result "1-0"]
[WhiteElo "2505"]
[BlackElo "2661"]
[TimeControl "180+1"]
[EndTime "15:54:33 PDT"]
[Termination "Cipy77 won by checkmate"]

1. e4 {[%clk 0:02:58.5]} 1... e6 {[%clk 0:02:43.9]} 2. d4 {[%clk 0:02:58]} 2...
d5 {[%clk 0:02:43.5]} 3. Nd2 {[%clk 0:02:58.6]} 3... c5 {[%clk 0:02:43.6]} 4.
exd5 {[%clk 0:02:58.4]} 4... exd5 {[%clk 0:02:44]} 5. Ngf3 {[%clk 0:02:58.8]}
5... Nc6 {[%clk 0:02:43.8]} 6. Bb5 {[%clk 0:02:58.8]} 6... cxd4 {[%clk
0:02:44.3]} 7. O-O {[%clk 0:02:57.5]} 7... Bd6 {[%clk 0:02:44.5]} 8. Nxd4 {[%clk
0:02:55.8]} 8... Bxh2+ {[%clk 0:02:44.5]} 9. Kh1 {[%clk 0:02:08.6]} 9... Bc7
{[%clk 0:02:06.9]} 10. Re1+ {[%clk 0:02:05.5]} 10... Kf8 {[%clk 0:02:05.2]} 11.
N2f3 {[%clk 0:02:04.2]} 11... Nge7 {[%clk 0:01:31.3]} 12. Bg5 {[%clk 0:02:03.6]}
12... f6 {[%clk 0:01:31.2]} 13. Bh4 {[%clk 0:02:01.8]} 13... Nxd4 {[%clk
0:01:30.2]} 14. Nxd4 {[%clk 0:02:00.9]} 14... Kf7 {[%clk 0:01:25.6]} 15. c4
{[%clk 0:01:54.4]} 15... Ng6 {[%clk 0:01:25.2]} 16. cxd5 {[%clk 0:01:50]} 16...
Nxh4 {[%clk 0:01:21.4]} 17. Ne6 {[%clk 0:01:49.7]} 17... Bxe6 {[%clk 0:01:15]}
18. dxe6+ {[%clk 0:01:49.7]} 18... Ke7 {[%clk 0:01:15.3]} 19. Qg4 {[%clk
0:01:40.7]} 19... Ng6 {[%clk 0:01:12.5]} 20. Rad1 {[%clk 0:01:39.4]} 20... Bd6
{[%clk 0:01:12.4]} 21. Qf3 {[%clk 0:01:36.7]} 21... Qb6 {[%clk 0:01:11.5]} 22.
Rxd6 {[%clk 0:01:19.5]} 22... Kxd6 {[%clk 0:01:08.9]} 23. Qa3+ {[%clk
0:01:19.4]} 23... Kc7 {[%clk 0:01:08.2]} 24. Qg3+ {[%clk 0:01:19.6]} 24... Ne5
{[%clk 0:00:33.8]} 25. Qxg7+ {[%clk 0:01:19]} 25... Kd6 {[%clk 0:00:34.3]} 26.
Rd1+ {[%clk 0:01:16.6]} 26... Kc5 {[%clk 0:00:34.6]} 27. Qxf6 {[%clk 0:01:07.2]}
27... Kxb5 {[%clk 0:00:32.2]} 28. Qxe5+ {[%clk 0:01:07]} 28... Kc4 {[%clk
0:00:19.2]} 29. Qc3+ {[%clk 0:00:58.1]} 29... Kb5 {[%clk 0:00:17.3]} 30. Rd5+
{[%clk 0:00:59]} 30... Ka6 {[%clk 0:00:14.9]} 31. Qa3+ {[%clk 0:00:59.1]} 31...
Qa5 {[%clk 0:00:15.4]} 32. Qxa5# {[%clk 0:00:59.8]} 1-0